[Event "FIDE World School-ch O-17 2025"]
[Site "Vrnjacka Banja"]
[Date "2025.03.26"]
[Round "7.5"]
[White "Brankovic, Uros"]
[Black "Milanovic, Marko"]
[Result "1-0"]
[Annotator "TA"]
[ECO "C45"]
[WhiteElo "1966"]
[BlackElo "2271"]
[PlyCount "135"]
[EventDate "2025.03.19"]
[EventType "swiss"]
[EventCountry "SRB"]
[SourceTitle "playchess.com"]
[Source "ChessBase"]
[SourceQuality "1"]
[TimeControl "5400+30"]

{[%evp 16,135,0,0,0,0,-5,-3,30,19,31,30,29,29,53,56,66,9,21,0,8,-6,-8,-25,23,12,14,10,37,0,25,35,51,46,48,21,53,14,29,12,6,0,0,0,0,-13,0,-46,65,-79,-57,-63,0,0,-13,-15,0,-4,0,0,0,0,0,-8,0,-95,-95,-100,-59,-65,0,0,74,0,4,0,10,9,59,22,24,24,47,47,47,47,587,584,586,587,578,575,549,522,710,700,684,615,604,585,583,555,916,889,923,905,941,800,5169,1037,1001,931,6099,1061,1012,989,5218,5173,29998,5210,29994,29995]} 1. e4 {[%emt 0:00:30]} e5 {[%emt 0:01:20]} 2. Nf3 {[%emt 0:00:00]} Nc6 {[%emt 0:00:26]} 3. d4 {[%emt 0:00:00]} exd4 {[%emt 0:00:19]} 4. Nxd4 {[%emt 0:00:00]} Nf6 {[%emt 0:00:06]} 5. Nxc6 {[%emt 0:00:04]} bxc6 {[%emt 0:00:08]} 6. Bd3 {[%emt 1:32:56]} d5 {[%emt 0:00:14]} 7. exd5 {[%emt 0:00:00]} cxd5 {[%emt 0:00:06]} 8. O-O {[%emt 0:00:00]} Be7 {[%emt 0:00:29]} 9. c4 {[%emt 0:00:00]} d4 {[%emt 0:02:02] C45: Scotch Game.} 10. Bg5 {[%emt 0:00:00]} O-O {[%emt 0:06:40]} 11. Nd2 {[%emt 0:00:00]} Bb7 {[%emt 0:04:48] The position is equal.} 12. Re1 {[%emt 0:00:00]} h6 {[%emt 0:07:11]} 13. Bxf6 {[%emt 0:00:00]} Bxf6 {[%emt 0:00:55] Black is weak on the light squares} 14. b4 {[%emt 0:00:00]} a5 {[%emt 0:07:06]} 15. b5 {[%emt 0:00:00]} Be7 $146 {[%emt 0:04:24]} ({Predecessor:} 15... Qd6 16. Be4 c6 17. Rc1 Qc7 18. a4 Rad8 19. Qf3 Bg5 20. Rcd1 Rfe8 21. g3 Bxd2 22. Rxd2 cxb5 23. cxb5 Bxe4 24. Rxe4 Rxe4 25. Qxe4 Qc1+ 26. Qe1 Qxe1+ {0-1 Jovanovic,Z (2520)-Abdurakhmanov,M (2284) Titled Tuesday intern op 26th May blitz 2020 (5)}) 16. Qg4 {[%emt 0:00:00] White is more active.} (16. Be4 $14 Bxe4 17. Rxe4) 16... Bb4 $11 {[%emt 0:10:52] A strong pair of Bishops.} 17. Rad1 {[%emt 0:00:00]} (17. Re2 f5 18. Qh5 Qf6 19. a3) 17... Qd6 {[%emt 0:16:55]} 18. Qg3 {[%emt 0:00:00]} (18. Re2 {feels hotter.} Rae8 19. Nb3 Bc3 20. Qg3) 18... Qxg3 {[%emt 0:12:55]} 19. hxg3 {[%emt 0:00:00]} Rae8 {[%emt 0:02:35]} (19... a4) 20. Rxe8 {[%emt 0:00:00]} Rxe8 {[%emt 0:00:01]} 21. Nb3 {[%emt 0:00:00]} Bc3 {[%emt 0:02:17]} 22. a4 {[%emt 0:08:00]} g6 {[%emt 0:01:45]} 23. Nc5 {[%emt 0:00:00]} Ba8 {[%emt 0:00:43]} 24. Na6 {[%emt 0:00:00]} Re7 {[%emt 0:06:47]} 25. Rb1 {[%emt 0:00:00]} Be4 {[%emt 0:05:06]} 26. Nc5 {[%emt 0:00:00]} Ba8 {[%emt 0:00:56]} 27. Kf1 {[%emt 0:00:00]} f5 {[%emt 0:01:08] [#]} 28. g4 $1 {[%emt 0:00:00]} fxg4 {[%emt 0:02:59]} 29. Bxg6 {[%emt 0:00:00]} Kg7 {[%emt 0:02:07]} 30. Bd3 {[%emt 0:00:00]} h5 {[%emt 0:00:21]} 31. Kg1 {[%emt 0:00:00]} (31. g3 $11 {should be considered.}) 31... Kf6 {[%emt 0:00:19]} (31... h4 $15) 32. Na6 {[%emt 0:00:00]} (32. b6 $14 cxb6 33. Rxb6+ Kf7 34. Bg6+ Kg7 35. Bxh5) 32... h4 $17 {[%emt 0:00:39]} 33. c5 {[%emt 0:00:00]} Bd5 {[%emt 0:01:07]} (33... Bb7 $1 $15) 34. b6 $1 $11 {[%emt 0:00:00]} cxb6 {[%emt 0:00:23]} 35. Rxb6+ {[%emt 0:00:08]} Kg5 {[%emt 0:00:53]} 36. Rg6+ {[%emt 0:01:18]} Kh5 {[%emt 0:00:30]} 37. Rd6 $1 {[%emt 0:00:30]} Be4 {[%emt 0:00:47]} 38. Bxe4 {[%emt 0:01:03]} Rxe4 {[%emt 0:00:02][%mdl 4096] Endgame KRB-KRN} 39. Rd5+ {[%emt 0:00:37]} Kg6 {[%emt 0:00:10] ( -> ...g3)} 40. Kh2 {[%emt 0:01:14]} (40. c6 g3 41. Rd6+ Kf5 42. fxg3 hxg3 43. Rd5+ Kg4) (40. g3 $1 $11) 40... Be1 {[%emt 0:00:55]} (40... d3 {simplifies} 41. Rxd3 Be5+ 42. g3 hxg3+ 43. fxg3 Rxa4 44. Rd5 Ra2+) 41. g3 {[%emt 0:02:27]} Bxf2 {[%emt 0:00:44]} 42. gxh4 {[%emt 0:02:43]} g3+ {[%emt 0:00:45]} (42... Bxh4 $15 43. c6 Re2+ 44. Kh1 Rc2) 43. Kg2 $1 {[%emt 0:00:00]} d3 {[%emt 0:00:28]} (43... Rxh4 $2 44. c6 Rh2+ 45. Kf3 $18) (43... Re2 $11) 44. Rxd3 {[%emt 0:00:00]} ({White should play} 44. c6 $16 {c7 would now be deadly.} Bb6 45. c7 (45. Kxg3 Rc4 $14) 45... Bxc7 46. h5+ (46. Nxc7 Rxh4 47. Kxg3 Rxa4 $14) 46... Kh6 47. Nxc7) 44... Rc4 $132 {[%emt 0:00:29][%cal Og6h5][%mdl 2048] Black has counterplay} 45. Rd5 {[%emt 0:00:00]} Rc2 {[%emt 0:00:19]} 46. Kh3 {[%emt 0:00:29]} Be1 {[%emt 0:00:30]} (46... Kf6 $11) 47. Re5 {[%emt 0:00:28]} Rh2+ {[%emt 0:00:42]} 48. Kg4 {[%emt 0:00:15]} Bf2 {[%emt 0:00:32]} 49. Kf3 {[%emt 0:00:48]} Rxh4 {[%emt 0:00:13][%cal Og6f6]} 50. c6 {[%emt 0:00:22]} Rc4 $2 {[%emt 0:00:45][%mdl 8192] This move loses the game for Black.} (50... Rxa4 $2 51. c7 Rc4 52. Nc5 Rc3+ (52... Rxc5 $2 53. Rxc5 Bxc5 54. c8=Q $18) 53. Kg2 Rxc5 54. Rxc5 Bxc5 55. c8=Q $18 (55. c8=B $2 Bd6 $19)) ({Better is} 50... Bb6 $1 $14) 51. c7 $18 {[%emt 0:00:23][%cal Oa6c5]} Rc3+ {[%emt 0:00:22] [#]} 52. Kg2 $1 {[%emt 0:00:25][%cal Oa6c5]} Rc2 {[%emt 0:00:33] [#] and ...Bd4+ should not be overlooked} 53. Re2 $3 {[%emt 0:00:55][%mdl 512]} Rxe2 {[%emt 0:00:38]} (53... Rc1 54. Re8) 54. c8=Q {[%emt 0:00:04] Inhibits Rc2.} (54. c8=R $2 {too greedy.} Re4 55. Rc6+ Kf5 $19) 54... Be1+ {[%emt 0:00:05]} 55. Kf1 {[%emt 0:00:49]} Re5 {[%emt 0:00:40]} 56. Qg8+ {[%emt 0:00:23]} Kf5 {[%emt 0:00:18]} 57. Qf7+ {[%emt 0:00:44]} Kg4 {[%emt 0:00:27]} 58. Qg6+ {[%emt 0:00:15]} Kf4 {[%emt 0:00:40]} 59. Qf6+ {[%emt 0:00:46]} Rf5 {[%emt 0:00:38]} 60. Qd4+ {[%emt 0:00:28]} Kf3 {[%emt 0:00:16]} 61. Kxe1 {[%emt 0:00:49]} Rg5 {[%emt 0:00:20]} 62. Qd3+ {[%emt 0:00:15]} Kg4 {[%emt 0:00:41]} 63. Kf1 {[%emt 0:00:22]} Kh3 {[%emt 0:01:29]} 64. Qh7+ {[%emt 0:00:09]} Kg4 {[%emt 0:00:00]} 65. Kg2 {[%emt 0:00:09]} Kf4 {[%emt 0:00:00] Inhibits Qe4+.} 66. Nc7 {[%emt 0:00:28]} Kg4 {[%emt 0:00:16]} 67. Qe4+ {[%emt 0:00:08]} Kh5 {[%emt 0:00:04]} 68. Ne6 {[%emt 0:00:06] Weighted Error Value: White=0.18 (very precise) /Black=0.36  Loses game:     	---       	Black=1      Mistake:       	White=5     	Black=6      Inaccurate:     	White=4     	Black=6      OK:         	White=19    	Black=16     Best:        	White=5     	Black=3      Strong:       	White=4     	---        Brilliant:      	White=1     	---} 1-0

[Event "FIDE World School-ch O-17 2025"]
[Site "Vrnjacka Banja"]
[Date "2025.03.26"]
[Round "7.6"]
[White "Yildiz, Egehan"]
[Black "Andjelkovic, Aleksandar M"]
[Result "1/2-1/2"]
[Annotator "TA"]
[ECO "D32"]
[WhiteElo "2204"]
[BlackElo "1930"]
[PlyCount "132"]
[EventDate "2025.03.19"]
[EventType "swiss"]
[EventCountry "SRB"]
[SourceTitle "playchess.com"]
[Source "ChessBase"]
[SourceQuality "1"]
[TimeControl "5400+30"]

{[%evp 12,132,53,40,52,52,57,34,28,37,64,62,68,60,127,105,103,79,98,92,96,93,103,68,103,100,123,83,68,-29996,54,62,1002,-860,88,80,91,85,86,79,159,166,180,170,206,110,106,116,106,102,116,112,123,121,110,107,105,105,116,117,115,59,54,8,111,73,174,172,125,43,43,43,43,12,12,12,12,0,0,0,0,0,0,0,0,0,0,0,0,0,0,0,0,0,0,0,0,0,0,0,0,0,0,0,0,0,0,0,0,0,0,0,0,0,0,0,0,0,0,0,0,0,0]} 1. d4 {[%emt 0:00:11]} d5 {[%emt 0:00:03]} 2. c4 {[%emt 0:00:06]} e6 {[%emt 0:00:13][%cal Be7e6,Be6d5,Bd5d4][%mdl 32]} 3. Nf3 {[%emt 0:00:21]} c5 {[%emt 0:01:43]} 4. cxd5 {[%emt 0:00:07]} exd5 {[%emt 0:00:08]} 5. Nc3 {[%emt 0:00:13]} Nc6 {[%emt 0:00:10]} 6. dxc5 {[%emt 0:00:10]} d4 {[%emt 0:00:11]} 7. Na4 $1 {[%emt 0:01:00]} Bxc5 {[%emt 0:01:54] D32: Tarrasch Defence: Sidelines and lines without g3.} 8. Nxc5 {[%emt 0:00:08]} Qa5+ {[%emt 0:00:05]} 9. Qd2 {[%emt 0:00:04]} Qxc5 {[%emt 0:00:05] White is slightly better.} 10. a3 {[%emt 0:00:02] 10.e3 might become the main line. Wards off Nb4} Nf6 {[%emt 0:16:19]} 11. b4 {[%emt 0:00:21]} Qb6 {[%emt 0:00:22]} 12. Bb2 $36 {[%emt 0:04:23][%mdl 2048] White is pushing.} Bg4 $146 {[%emt 0:05:53]} ({Black should play} 12... O-O $14) (12... O-O 13. Bxd4 Nxd4 14. Qxd4 Qc7 15. e3 Rd8 16. Qb2 a5 17. b5 Bg4 18. Be2 Ne4 {½-½ Borges Feria,Y (2439)-Lacasa Diaz,J (2372) Titled Tuesday intern op 17th Jan Early blitz 2023 (2)}) 13. Bxd4 {[%emt 0:41:20]} Nxd4 {[%emt 0:01:12]} 14. Qxd4 {[%emt 0:07:14]} Bxf3 {[%emt 0:11:54]} 15. Qe5+ {[%emt 0:00:48]} (15. Qxb6 {simplifies} axb6 16. exf3 O-O 17. Bd3) 15... Kf8 {[%emt 0:02:47]} 16. gxf3 {[%emt 0:00:08]} (16. exf3 $2 Re8 $19) 16... a5 {[%emt 0:03:31]} 17. b5 {[%emt 0:03:14]} h5 {[%emt 0:15:22][%cal Bh7h5,Bh5h4][%mdl 32]} 18. Rc1 {[%emt 0:04:50]} h4 {[%emt 0:16:53]} 19. Qc5+ {[%emt 0:01:49]} Qxc5 {[%emt 0:00:02] [#]} 20. Rc2 {[%mdl 8192] [#]} Qc4 $2 21. Rxc4 $14 {[%emt 0:00:31]} Rc8 $2 {[%emt 0:22:13][%mdl 8192] [#] Repels Rc7} 22. Rc5 $4 {[%mdl 8192]} Rd8 $2 {[%emt 0:00:00]} (22... Rxc5 $19 23. f4 Rxb5 (23... Rc1+ $2 24. Kd2 $19)) 23. e3 $16 {[%emt 0:02:34]} Rh5 {[%emt 0:00:00]} 24. Rxh5 {[%emt 0:01:47]} Nxh5 {[%emt 0:00:00][%mdl 4096] Endgame KRB-KRN. White is a pawn up.} 25. Rg1 {[%emt 0:00:41]} Rd5 {[%emt 0:00:00]} (25... Nf6 $142) 26. Rg4 {[%emt 0:00:52]} g5 {[%emt 0:00:00]} 27. Rc4 {[%emt 0:01:52]} Ke7 {[%emt 0:00:00]} 28. Re4+ {[%emt 0:08:15]} (28. b6 $18 {Threatens to win with Rc7+.} Kd6 29. Rc7) 28... Kd6 {[%emt 0:00:00]} 29. Bc4 {[%emt 0:00:24]} Rf5 {[%emt 0:00:00]} 30. Ke2 {[%emt 0:00:18]} Nf6 {[%emt 0:01:11]} 31. Rd4+ {[%emt 0:00:12]} Ke7 {[%emt 0:00:24]} 32. a4 {[%emt 0:09:39]} Nd7 {[%emt 0:01:00]} 33. Bd3 {[%emt 0:01:35] White is more active.} Rc5 {[%emt 0:01:21]} 34. f4 {[%emt 0:00:14]} f6 {[%emt 0:00:41]} 35. fxg5 {[%emt 0:00:36]} fxg5 {[%emt 0:00:06]} 36. f4 {[%emt 0:00:39]} (36. Kd2 $16) 36... g4 $14 {[%emt 0:00:40]} 37. Kf2 {[%emt 0:02:18]} (37. Re4+ $14 Kf7 38. Rd4) 37... Nf6 {[%emt 0:00:21]} (37... Rc1 $11 {remains equal.}) 38. e4 {[%emt 0:01:17]} Rc3 {[%emt 0:01:06]} (38... g3+ $16 39. hxg3 h3) 39. e5 $18 {[%emt 0:02:49]} Nd7 {[%emt 0:01:33] [#]} 40. Bf5 {[%emt 0:01:40]} ({Better is} 40. Be2 $1 $16) 40... Nxe5 $1 $14 {[%emt 0:00:35]} 41. fxe5 {[%emt 0:04:38] KRB-KR} Rf3+ {[%emt 0:00:02]} 42. Kg1 {[%emt 0:00:28]} Rxf5 {[%emt 0:00:14] The position is equal.} 43. Rxg4 $11 {[%emt 0:00:02] KR-KR. White is a pawn up.} h3 {[%emt 0:00:19]} 44. Rg3 {[%emt 0:01:44]} Rf4 {[%emt 0:01:15]} 45. Rxh3 {[%emt 0:00:18]} Rxa4 {[%emt 0:00:08]} 46. Rh7+ {[%emt 0:00:04]} Ke6 {[%emt 0:00:06]} 47. Rxb7 {[%emt 0:00:03]} Rb4 {[%emt 0:00:13]} 48. b6 {[%emt 0:00:48]} a4 {[%emt 0:00:37]} 49. Kg2 {[%emt 0:00:29]} a3 {[%emt 0:00:15]} 50. Ra7 {[%emt 0:00:02]} Rxb6 {[%emt 0:00:29]} 51. Rxa3 {[%emt 0:00:03]} Kxe5 {[%emt 0:00:02]} 52. Rf3 {[%emt 0:00:19]} Rg6+ {[%emt 0:00:13]} 53. Kh3 {[%emt 0:00:18]} Rh6+ {[%emt 0:00:27]} 54. Kg2 {[%emt 0:00:01]} Rg6+ {[%emt 0:00:07]} 55. Kh1 {[%emt 0:00:00]} Rf6 {[%emt 0:01:40]} 56. Ra3 {[%emt 0:00:01]} Rg6 {[%emt 0:00:21]} 57. h3 {[%emt 0:00:02]} Kf4 {[%emt 0:00:19]} 58. Kh2 {[%emt 0:00:02]} Re6 {[%emt 0:01:29]} 59. Ra2 {[%emt 0:00:12]} Re3 {[%emt 0:00:29]} 60. Rf2+ {[%emt 0:00:20]} Kg5 {[%emt 0:00:22]} 61. Rf8 {[%emt 0:00:16]} Rd3 {[%emt 0:00:23]} 62. Rg8+ {[%emt 0:00:06]} Kh4 {[%emt 0:00:15]} 63. Rh8+ {[%emt 0:00:44]} Kg5 {[%emt 0:00:22]} 64. h4+ {[%emt 0:00:14]} Kg4 {[%emt 0:00:28]} 65. h5 {[%emt 0:00:14]} Rh3+ {[%emt 0:00:09]} 66. Kg2 {[%emt 0:00:05]} Rxh5 {[%emt 0:00:08] Weighted Error Value: White=0.35/Black=0.53  Loses game:     	White=1     	---        Missed win:     	White=1     	Black=2      Mistake:       	White=4     	Black=4      Inaccurate:     	White=4     	Black=2      OK:         	White=16    	Black=26     Best:        	White=4     	Black=5      Strong:       	---       	Black=1} 1/2-1/2

[Event "FIDE World School-ch O-17 2025"]
[Site "Vrnjacka Banja"]
[Date "2025.03.26"]
[Round "7.7"]
[White "Adithya A Chullikkad"]
[Black "Rustamov, Bekzod"]
[Result "1-0"]
[Annotator "NA RC"]
[ECO "B38"]
[WhiteElo "2101"]
[BlackElo "1829"]
[PlyCount "75"]
[EventDate "2025.03.19"]
[EventType "swiss"]
[EventCountry "SRB"]
[SourceTitle "playchess.com"]
[Source "ChessBase"]
[SourceQuality "1"]
[TimeControl "5400+30"]

1. e4 {[%emt 0:01:30]} c5 {[%emt 0:00:12]} 2. Nf3 {[%emt 0:00:22]} g6 {[%emt 0:00:05]} 3. d4 {[%emt 0:00:24]} cxd4 {[%emt 0:00:16]} 4. Nxd4 {[%emt 0:00:26]} Bg7 {[%emt 0:00:14]} 5. c4 {[%emt 0:01:56]} Nc6 {[%emt 0:00:13]} 6. Be3 {[%emt 0:01:01]} Nf6 {[%emt 0:01:53]} 7. Nc3 {[%emt 0:00:36]} O-O {[%emt 0:00:25]} 8. Be2 {[%emt 0:02:05]} d6 {[%emt 0:01:12]} 9. h3 {[%emt 0:03:23]} Bd7 {[%emt 1:30:30]} 10. O-O {[%emt 0:01:02]} a6 {[%emt 0:00:30]} 11. Rc1 {[%emt 0:04:30]} Nxd4 {[%emt 0:00:00]} 12. Bxd4 {[%emt 0:00:28]} Bc6 {[%emt 0:00:00]} 13. Qd3 {[%emt 0:06:33]} Qa5 {[%emt 0:00:00]} 14. a3 {[%emt 0:05:13]} b5 {[%emt 0:00:00]} 15. Nd5 {[%emt 0:07:34]} Bxd5 {[%emt 0:00:00]} 16. cxd5 {[%emt 0:00:28]} b4 {[%emt 0:00:00]} 17. axb4 {[%emt 0:08:59]} Qxb4 {[%emt 0:00:00]} 18. Rc7 {[%emt 0:02:18]} Rfe8 {[%emt 0:00:00]} 19. Rfc1 {[%emt 0:04:30]} a5 {[%emt 0:00:00]} 20. R1c4 {[%emt 0:04:24]} Qe1+ {[%emt 0:00:00]} 21. Kh2 {[%emt 0:00:20]} Bh6 {[%emt 0:00:00]} 22. g3 {[%emt 0:10:06]} e5 {[%emt 0:00:00]} 23. dxe6 {[%emt 0:07:35]} Rxe6 {[%emt 0:00:00]} 24. Rc8+ {[%emt 0:01:56]} Rxc8 {[%emt 0:00:00]} 25. Rxc8+ {[%emt 0:00:05]} Bf8 {[%emt 0:00:00]} 26. Qa6 {[%emt 0:12:15]} Re8 {[%emt 0:00:00]} 27. Bf3 {[%emt 0:03:27]} Rxc8 {[%emt 0:00:00]} 28. Qxc8 {[%emt 0:00:06]} Nxe4 {[%emt 0:00:00]} 29. Be3 {[%emt 0:05:05]} Nd2 {[%emt 0:00:00]} 30. Bg2 {[%emt 0:00:16]} Nf1+ {[%emt 0:00:21]} 31. Bxf1 {[%emt 0:00:03]} Qxf1 {[%emt 0:00:02]} 32. Qa8 {[%emt 0:00:25]} Qe1 {[%emt 0:02:32]} 33. Kg2 {[%emt 0:00:05]} Qb4 {[%emt 0:06:58]} 34. b3 {[%emt 0:01:36]} h5 {[%emt 0:01:35]} 35. h4 {[%emt 0:00:29]} f5 {[%emt 0:00:29]} 36. Kh2 {[%emt 0:03:26]} Kg7 {[%emt 0:00:31]} 37. Qd5 {[%emt 0:01:25]} Qc3 {[%emt 0:00:27]} 38. Bd4+ {[%emt 0:00:08]} 1-0

[Event "FIDE World School-ch O-17 2025"]
[Site "Vrnjacka Banja"]
[Date "2025.03.26"]
[Round "7.8"]
[White "Amankos, Zhanbolat"]
[Black "Zdravkovic, Filip"]
[Result "0-1"]
[Annotator "NA RC"]
[ECO "D00"]
[WhiteElo "1954"]
[BlackElo "1963"]
[PlyCount "104"]
[EventDate "2025.03.19"]
[EventType "swiss"]
[EventCountry "SRB"]
[SourceTitle "playchess.com"]
[Source "ChessBase"]
[SourceQuality "1"]
[TimeControl "5400+30"]

1. d4 {[%emt 0:01:05]} Nf6 {[%emt 0:00:16]} 2. Bg5 {[%emt 0:00:12]} g6 {[%emt 0:01:27]} 3. Bxf6 {[%emt 0:01:05]} exf6 {[%emt 0:00:07]} 4. e3 {[%emt 0:00:05]} d5 {[%emt 0:01:52]} 5. Ne2 {[%emt 0:00:32]} Bd6 {[%emt 0:00:57]} 6. Nd2 {[%emt 0:01:17]} Nd7 {[%emt 0:01:41]} 7. g3 {[%emt 0:00:43]} c6 {[%emt 0:02:56]} 8. Bg2 {[%emt 0:00:48]} Nb6 {[%emt 0:03:42]} 9. Rc1 {[%emt 0:05:59]} Be6 {[%emt 0:02:24]} 10. c3 {[%emt 0:04:53]} h5 {[%emt 0:04:40]} 11. h4 {[%emt 0:06:45]} O-O {[%emt 0:03:12]} 12. O-O {[%emt 0:02:34]} Kg7 {[%emt 0:03:30]} 13. Nf4 {[%emt 0:01:09]} Bxf4 {[%emt 0:02:48]} 14. exf4 {[%emt 0:00:28]} Re8 {[%emt 0:04:26]} 15. Re1 {[%emt 0:00:38]} Bg4 {[%emt 0:01:49]} 16. Qb3 {[%emt 0:07:03]} Qd7 {[%emt 0:03:56]} 17. a4 {[%emt 0:04:28]} Rxe1+ {[%emt 0:03:54]} 18. Rxe1 {[%emt 0:02:25]} Re8 {[%emt 0:00:07]} 19. Re3 {[%emt 0:03:45]} Rxe3 {[%emt 0:15:58]} 20. fxe3 {[%emt 0:00:08]} Be2 {[%emt 0:00:29]} 21. Kf2 {[%emt 0:26:38]} Qg4 {[%emt 0:02:38]} 22. Nf3 {[%emt 0:02:28]} Ba6 {[%emt 0:00:29]} 23. Qc2 {[%emt 0:01:53]} Nc4 {[%emt 0:00:49]} 24. Nd2 {[%emt 0:09:48]} Nxe3 {[%emt 0:00:42]} 25. Bf3 {[%emt 0:03:23]} Qxf3+ {[%emt 0:00:22]} 26. Kxf3 {[%emt 0:00:34]} Nxc2 {[%emt 0:00:06]} 27. Kf2 {[%emt 0:00:29]} b6 {[%emt 0:01:25]} 28. b3 {[%emt 0:00:40]} c5 {[%emt 0:00:13]} 29. dxc5 {[%emt 0:00:05]} bxc5 {[%emt 0:00:04]} 30. Kf3 {[%emt 0:00:26]} d4 {[%emt 0:01:27]} 31. cxd4 {[%emt 0:00:17]} Nxd4+ {[%emt 0:00:11]} 32. Ke4 {[%emt 0:00:02]} Bb7+ {[%emt 0:00:09]} 33. Kd3 {[%emt 0:00:05]} Bd5 {[%emt 0:00:11]} 34. b4 {[%emt 0:00:40]} Nf5 {[%emt 0:01:55]} 35. b5 {[%emt 0:02:51]} Nxg3 {[%emt 0:00:36]} 36. Nc4 {[%emt 0:00:36]} Nf5 {[%emt 0:00:34]} 37. a5 {[%emt 0:01:03]} Nxh4 {[%emt 0:00:48]} 38. Ne3 {[%emt 0:00:20]} Bb7 {[%emt 0:00:33]} 39. Kc4 {[%emt 0:00:31]} Ng2 {[%emt 0:00:43]} 40. Nf1 {[%emt 0:01:31]} Nxf4 {[%emt 0:00:10]} 41. Kxc5 {[%emt 0:00:03]} Ne6+ {[%emt 0:01:03]} 42. Kd6 {[%emt 0:00:31]} g5 {[%emt 0:01:10]} 43. Ne3 {[%emt 0:01:32]} Kg6 {[%emt 0:01:00]} 44. b6 {[%emt 0:00:55]} axb6 {[%emt 0:00:06]} 45. axb6 {[%emt 0:00:04]} h4 {[%emt 0:00:11]} 46. Ke7 {[%emt 0:02:16]} f5 {[%emt 0:00:39]} 47. Nc4 {[%emt 0:01:01]} h3 {[%emt 0:00:09]} 48. Ne5+ {[%emt 0:00:02]} Kg7 {[%emt 0:00:08]} 49. Nxf7 {[%emt 0:00:28]} h2 {[%emt 0:00:08]} 50. Kxe6 {[%emt 0:00:18]} h1=Q {[%emt 0:00:09]} 51. Nd6 {[%emt 0:00:05]} Qd5+ {[%emt 0:00:36]} 52. Ke7 {[%emt 0:00:07]} Bc6 {[%emt 0:01:05]} 0-1